fUST/lending_fUST_20260605
["ID","MTS","AMOUNT","RATE_DAILY","PERIOD"]
[424140362,1780608650000,-151.0,0.00019603,2]
[424140365,1780608650000,-151.0,0.00019603,2]
[424140375,1780608650000,-185.057735,0.00019603,2]
[424140366,1780608650000,-276.449278,0.00019603,2]
[424140373,1780608650000,-204.8592,0.00019603,2]
[424140371,1780608650000,-185.057735,0.00019603,2]
[424140358,1780608650000,-151.0,0.00019603,2]
[424140369,1780608650000,-185.057735,0.00019603,2]
[424140351,1780608650000,-3447.97112253,0.00019589,2]
[424140360,1780608650000,-151.0,0.00019603,2]
[424140459,1780608651000,-1115.37,0.00019729,2]
[424140469,1780608651000,-500.0,0.0002,2]
[424140474,1780608651000,-500.0,0.0002,2]
[424140473,1780608651000,-500.0,0.0002,2]
[424140457,1780608651000,-471.75,0.00019729,2]
[424140471,1780608651000,-500.0,0.0002,2]
[424140467,1780608651000,-864.0,0.00019953,2]
[424140465,1780608651000,-461.14266099,0.00019729,2]
[424140441,1780608651000,-801.88,0.00019726,2]
[424140455,1780608651000,-2670.39,0.00019726,2]
[424140461,1780608651000,-1814.21,0.00019729,2]
[424140453,1780608651000,-935.62,0.00019726,2]
[424140451,1780608651000,-1144.85,0.00019726,2]
[424140449,1780608651000,-798.36,0.00019726,2]
[424140447,1780608651000,-726.76,0.00019726,2]
[424140488,1780608651000,-500.0,0.0002,2]
[424140463,1780608651000,-500.0,0.00019729,2]
[424140490,1780608651000,-500.0,0.0002,2]
[424140504,1780608651000,-83489.14908332,0.0002,2]
[424140476,1780608651000,-500.0,0.0002,2]
[424140492,1780608651000,-816.27859453,0.0002,2]
[424140512,1780608651000,-41953.52746284,0.0002,2]
[424140510,1780608651000,-1280.0,0.0002,5]
[424140509,1780608651000,-1225.0,0.0002,2]
[424140514,1780608651000,-69745.55224138,0.0002,2]
[424140500,1780608651000,-1000.0,0.000195,2]
[424140508,1780608651000,-803.22648275,0.0002,5]
[424140516,1780608651000,-234910.14654443,0.0002,2]
[424140507,1780608651000,-2697.59,0.0002,5]
[424140486,1780608651000,-500.0,0.0002,2]
[424140480,1780608651000,-500.0,0.0002,2]
[424140478,1780608651000,-500.0,0.0002,2]
[424140494,1780608651000,-162779.52679201,0.0002,2]
[424140482,1780608651000,-500.0,0.0002,2]
[424140498,1780608651000,-1632.63,0.0002,2]
[424140502,1780608651000,-5834.22560247,0.0002,2]
[424140484,1780608651000,-500.0,0.0002,2]
[424141739,1780609832000,-598.6213911,0.0001293,2]
[424142057,1780609838000,-500.0,0.00013698,2]
[424142054,1780609838000,-171.08537154,0.00013698,2]
[424142058,1780609838000,-500.0,0.00013698,2]
[424142060,1780609838000,-500.0,0.00013698,2]
[424142076,1780609838000,-500.0,0.00013698,2]
[424142072,1780609838000,-500.0,0.00013698,2]
[424142070,1780609838000,-500.0,0.00013698,2]
[424142075,1780609838000,-500.0,0.00013698,2]
[424142047,1780609838000,-500.0,0.00013698,2]
[424142062,1780609838000,-500.0,0.00013698,2]
[424142052,1780609838000,-500.0,0.00013698,2]
[424142035,1780609838000,-500.0,0.00013698,2]
[424142051,1780609838000,-500.0,0.00013698,2]
[424142045,1780609838000,-500.0,0.00013698,2]
[424142033,1780609838000,-210.57885041,0.00013461,2]
[424142043,1780609838000,-500.0,0.00013698,2]
[424142039,1780609838000,-500.0,0.00013698,2]
[424142037,1780609838000,-548.89,0.00013698,2]
[424142041,1780609838000,-500.0,0.00013698,2]
[424142031,1780609838000,-5000.0,0.00013061,2]
[424142064,1780609838000,-500.0,0.00013698,2]
[424142029,1780609838000,-4076.04887103,0.0001293,2]
[424142049,1780609838000,-500.0,0.00013698,2]
[424142066,1780609838000,-500.0,0.00013698,2]
[424142123,1780609838000,-500.0,0.00013971,2]
[424142078,1780609838000,-500.0,0.00013698,2]
[424142068,1780609838000,-500.0,0.00013698,2]
[424142125,1780609838000,-500.0,0.00013971,2]
[424142121,1780609838000,-2293.61367448,0.00013871,2]
[424142115,1780609838000,-500.0,0.00013698,2]
[424142119,1780609838000,-390.826328,0.00013699,2]
[424142117,1780609838000,-1000.0,0.00013699,2]
[424142111,1780609838000,-500.0,0.00013698,2]
[424142109,1780609838000,-500.0,0.00013698,2]
[424142107,1780609838000,-500.0,0.00013698,2]
[424142105,1780609838000,-500.0,0.00013698,2]
[424142094,1780609838000,-500.0,0.00013698,2]
[424142113,1780609838000,-500.0,0.00013698,2]
[424142088,1780609838000,-500.0,0.00013698,2]
[424142089,1780609838000,-500.0,0.00013698,2]
[424142103,1780609838000,-500.0,0.00013698,2]
[424142086,1780609838000,-500.0,0.00013698,2]
[424142102,1780609838000,-500.0,0.00013698,2]
[424142082,1780609838000,-500.0,0.00013698,2]
[424142099,1780609838000,-500.0,0.00013698,2]
[424142084,1780609838000,-500.0,0.00013698,2]
[424142097,1780609838000,-500.0,0.00013698,2]
[424142096,1780609838000,-500.0,0.00013698,2]
[424142080,1780609838000,-500.0,0.00013698,2]
[424142091,1780609838000,-500.0,0.00013698,2]
[424142226,1780609839000,-500.0,0.00014245,2]
[424142222,1780609839000,-500.0,0.00014245,2]
[424142213,1780609839000,-500.0,0.00013972,2]
[424142217,1780609839000,-500.0,0.00013972,2]
[424142204,1780609839000,-500.0,0.00013972,2]
[424142215,1780609839000,-500.0,0.00013972,2]
[424142211,1780609839000,-500.0,0.00013972,2]
[424142209,1780609839000,-500.0,0.00013972,2]
[424142208,1780609839000,-301.94,0.00013972,2]
[424142221,1780609839000,-500.0,0.00014245,2]
[424142219,1780609839000,-500.0,0.00013972,2]
[424142230,1780609839000,-500.0,0.00014245,2]
[424142255,1780609839000,-500.0,0.00014245,2]
[424142232,1780609839000,-500.0,0.00014245,2]
[424142234,1780609839000,-554.69,0.00014245,2]
[424142236,1780609839000,-500.0,0.00014245,2]
[424142246,1780609839000,-500.0,0.00014245,2]
[424142248,1780609839000,-500.0,0.00014245,2]
[424142250,1780609839000,-500.0,0.00014245,2]
[424142253,1780609839000,-500.0,0.00014245,2]
[424142252,1780609839000,-500.0,0.00014245,2]
[424142242,1780609839000,-500.0,0.00014245,2]
[424142244,1780609839000,-500.0,0.00014245,2]
[424142206,1780609839000,-500.0,0.00013972,2]
[424142257,1780609839000,-500.0,0.00014245,2]
[424142228,1780609839000,-500.0,0.00014245,2]
[424142193,1780609839000,-500.0,0.00013972,2]
[424142182,1780609839000,-500.0,0.00013972,2]
[424142191,1780609839000,-500.0,0.00013972,2]
[424142152,1780609839000,-500.0,0.00013971,2]
[424142156,1780609839000,-500.0,0.00013971,2]
[424142153,1780609839000,-500.0,0.00013971,2]
[424142150,1780609839000,-500.0,0.00013971,2]
[424142157,1780609839000,-500.0,0.00013971,2]
[424142168,1780609839000,-500.0,0.00013972,2]
[424142170,1780609839000,-500.0,0.00013972,2]
[424142159,1780609839000,-500.0,0.00013971,2]
[424142172,1780609839000,-500.0,0.00013972,2]
[424142161,1780609839000,-500.0,0.00013971,2]
[424142176,1780609839000,-500.0,0.00013972,2]
[424142174,1780609839000,-500.0,0.00013972,2]
[424142187,1780609839000,-500.0,0.00013972,2]
[424142164,1780609839000,-500.0,0.00013972,2]
[424142162,1780609839000,-500.0,0.00013971,2]
[424142178,1780609839000,-500.0,0.00013972,2]
[424142258,1780609839000,-500.0,0.00014245,2]
[424142180,1780609839000,-500.0,0.00013972,2]
[424142194,1780609839000,-500.0,0.00013972,2]
[424142196,1780609839000,-500.0,0.00013972,2]
[424142198,1780609839000,-500.0,0.00013972,2]
[424142202,1780609839000,-500.0,0.00013972,2]
[424142183,1780609839000,-500.0,0.00013972,2]
[424142200,1780609839000,-500.0,0.00013972,2]
[424142185,1780609839000,-500.0,0.00013972,2]
[424142189,1780609839000,-500.0,0.00013972,2]
[424142166,1780609839000,-500.0,0.00013972,2]
[424142260,1780609839000,-500.0,0.00014245,2]
[424142224,1780609839000,-500.0,0.00014245,2]
[424142262,1780609839000,-500.0,0.00014245,2]
[424142308,1780609839000,-1537.48,0.00014519,2]
[424142310,1780609839000,-500.0,0.00014519,2]
[424142324,1780609839000,-500.0,0.00014519,2]
[424142326,1780609839000,-500.0,0.00014519,2]
[424142328,1780609839000,-500.0,0.00014519,2]
[424142338,1780609839000,-500.0,0.00014519,2]
[424142341,1780609839000,-500.0,0.00014519,2]
[424142344,1780609839000,-564.08,0.00014519,2]
[424142335,1780609839000,-500.0,0.00014519,2]
[424142329,1780609839000,-500.0,0.00014519,2]
[424142346,1780609839000,-500.0,0.00014519,2]
[424142348,1780609839000,-500.0,0.00014519,2]
[424142320,1780609839000,-500.0,0.00014519,2]
[424142351,1780609839000,-500.0,0.00014519,2]
[424142355,1780609839000,-645.07525799,0.00014519,2]
[424142356,1780609839000,-435.76048694,0.00014519,2]
[424142358,1780609839000,-500.0,0.00014519,2]
[424142360,1780609839000,-500.0,0.0001452,2]
[424142362,1780609839000,-500.0,0.0001452,2]
[424142372,1780609839000,-500.0,0.0001452,2]
[424142364,1780609839000,-500.0,0.0001452,2]
[424142374,1780609839000,-500.0,0.0001452,2]
[424142368,1780609839000,-500.0,0.0001452,2]
[424142366,1780609839000,-500.0,0.0001452,2]
[424142370,1780609839000,-500.0,0.0001452,2]
[424142264,1780609839000,-500.0,0.00014245,2]
[424142353,1780609839000,-500.0,0.00014519,2]
[424142322,1780609839000,-500.0,0.00014519,2]
[424142332,1780609839000,-500.0,0.00014519,2]
[424142307,1780609839000,-500.0,0.00014519,2]
[424142268,1780609839000,-500.0,0.00014245,2]
[424142312,1780609839000,-500.0,0.00014519,2]
[424142266,1780609839000,-495.25523106,0.00014245,2]
[424142277,1780609839000,-500.0,0.00014246,2]
[424142271,1780609839000,-500.0,0.00014246,2]
[424142270,1780609839000,-500.0,0.00014246,2]
[424142275,1780609839000,-500.0,0.00014246,2]
[424142273,1780609839000,-500.0,0.00014246,2]
[424142279,1780609839000,-500.0,0.00014246,2]
[424142281,1780609839000,-500.0,0.00014246,2]
[424142290,1780609839000,-500.0,0.00014246,2]
[424142293,1780609839000,-500.0,0.00014246,2]
[424142294,1780609839000,-500.0,0.00014246,2]
[424142285,1780609839000,-500.0,0.00014246,2]
[424142288,1780609839000,-500.0,0.00014246,2]
[424142317,1780609839000,-500.0,0.00014519,2]
[424142304,1780609839000,-340.65224025,0.00014518,2]
[424142299,1780609839000,-500.0,0.00014246,2]
[424142305,1780609839000,-500.0,0.00014518,2]
[424142314,1780609839000,-500.0,0.00014519,2]
[424142302,1780609839000,-500.0,0.00014518,2]
[424142301,1780609839000,-500.0,0.00014518,2]
[424142303,1780609839000,-220.5028888,0.00014518,2]
[424142286,1780609839000,-500.0,0.00014246,2]
[424142298,1780609839000,-642.67033973,0.00014246,2]
[424142283,1780609839000,-500.0,0.00014246,2]
[424142296,1780609839000,-500.0,0.00014246,2]
[424142300,1780609839000,-500.0,0.00014518,2]
[424142449,1780609840000,-564.08,0.00014793,2]
[424142451,1780609840000,-500.0,0.00014793,2]
[424142453,1780609840000,-500.0,0.00014793,2]
[424142455,1780609840000,-500.0,0.00014793,2]
[424142447,1780609840000,-500.0,0.00014793,2]
[424142437,1780609840000,-500.0,0.00014793,2]
[424142444,1780609840000,-500.0,0.00014793,2]
[424142436,1780609840000,-500.0,0.00014793,2]
[424142442,1780609840000,-640.01,0.00014793,2]
[424142439,1780609840000,-500.0,0.00014793,2]
[424142458,1780609840000,-500.0,0.00014793,2]
[424142445,1780609840000,-500.0,0.00014793,2]
[424142460,1780609840000,-500.0,0.00014794,2]
[424142488,1780609840000,-10793.52378382,0.00014859,2]
[424142464,1780609840000,-389.96272982,0.00014794,2]
[424142466,1780609840000,-500.0,0.00014794,2]
[424142476,1780609840000,-500.0,0.00014794,2]
[424142478,1780609840000,-500.0,0.00014794,2]
[424142472,1780609840000,-500.0,0.00014794,2]
[424142470,1780609840000,-500.0,0.00014794,2]
[424142474,1780609840000,-201.15247983,0.00014794,2]
[424142480,1780609840000,-500.0,0.00014858,2]
[424142468,1780609840000,-500.0,0.00014794,2]
[424142486,1780609840000,-500.0,0.00014858,2]
[424142482,1780609840000,-500.0,0.00014858,2]
[424142490,1780609840000,-500.0,0.00015066,2]
[424142434,1780609840000,-500.0,0.00014793,2]
[424142462,1780609840000,-500.0,0.00014794,2]
[424142432,1780609840000,-500.0,0.00014793,2]
[424142376,1780609840000,-500.0,0.0001452,2]
[424142426,1780609840000,-500.0,0.00014793,2]
[424142492,1780609840000,-500.0,0.00015066,2]
[424142378,1780609840000,-500.0,0.0001452,2]
[424142380,1780609840000,-500.0,0.0001452,2]
[424142382,1780609840000,-500.0,0.00014792,2]
[424142384,1780609840000,-500.0,0.00014792,2]
[424142395,1780609840000,-500.0,0.00014792,2]
[424142397,1780609840000,-500.0,0.00014792,2]
[424142400,1780609840000,-500.0,0.00014792,2]
[424142402,1780609840000,-500.0,0.00014792,2]
[424142386,1780609840000,-500.0,0.00014792,2]
[424142388,1780609840000,-500.0,0.00014792,2]
[424142405,1780609840000,-500.0,0.00014792,2]
[424142390,1780609840000,-500.0,0.00014792,2]
[424142394,1780609840000,-500.0,0.00014792,2]
[424142404,1780609840000,-500.0,0.00014792,2]
[424142392,1780609840000,-500.0,0.00014792,2]
[424142407,1780609840000,-500.0,0.00014792,2]
[424142409,1780609840000,-500.0,0.00014792,2]
[424142412,1780609840000,-500.0,0.00014792,2]
[424142414,1780609840000,-500.0,0.00014792,2]
[424142411,1780609840000,-500.0,0.00014792,2]
[424142418,1780609840000,-500.0,0.00014793,2]
[424142416,1780609840000,-500.0,0.00014792,2]
[424142422,1780609840000,-500.0,0.00014793,2]
[424142420,1780609840000,-1537.48,0.00014793,2]
[424142424,1780609840000,-500.0,0.00014793,2]
[424142430,1780609840000,-500.0,0.00014793,2]
[424142428,1780609840000,-500.0,0.00014793,2]
[424142494,1780609840000,-500.0,0.00015066,2]
[424142484,1780609840000,-500.0,0.00014858,2]
[424142508,1780609840000,-500.0,0.00015066,2]
[424142565,1780609840000,-500.0,0.0001534,2]
[424142567,1780609840000,-500.0,0.0001534,2]
[424142563,1780609840000,-500.0,0.0001534,2]
[424142569,1780609840000,-500.0,0.0001534,2]
[424142579,1780609840000,-500.0,0.0001534,2]
[424142581,1780609840000,-500.0,0.00015341,2]
[424142585,1780609840000,-500.0,0.00015341,2]
[424142583,1780609840000,-1537.48,0.00015341,2]
[424142587,1780609840000,-568.75,0.00015341,2]
[424142575,1780609840000,-500.0,0.0001534,2]
[424142571,1780609840000,-500.0,0.0001534,2]
[424142591,1780609840000,-500.0,0.00015341,2]
[424142573,1780609840000,-500.0,0.0001534,2]
[424142577,1780609840000,-500.0,0.0001534,2]
[424142603,1780609840000,-500.0,0.00015341,2]
[424142601,1780609840000,-500.0,0.00015341,2]
[424142607,1780609840000,-500.0,0.00015341,2]
[424142605,1780609840000,-500.0,0.00015341,2]
[424142609,1780609840000,-564.08,0.00015341,2]
[424142611,1780609840000,-500.0,0.00015341,2]
[424142623,1780609840000,-250.0,0.00015528,2]
[424142625,1780609840000,-500.0,0.00015614,2]
[424142613,1780609840000,-500.0,0.00015341,2]
[424142614,1780609840000,-500.0,0.00015341,2]
[424142621,1780609840000,-500.0,0.00015406,2]
[424142616,1780609840000,-500.0,0.00015342,2]
[424142496,1780609840000,-500.0,0.00015066,2]
[424142561,1780609840000,-500.0,0.00015132,2]
[424142543,1780609840000,-564.08,0.00015067,2]
[424142589,1780609840000,-500.0,0.00015341,2]
[424142554,1780609840000,-500.0,0.00015068,2]
[424142498,1780609840000,-500.0,0.00015066,2]
[424142545,1780609840000,-500.0,0.00015067,2]
[424142506,1780609840000,-500.0,0.00015066,2]
[424142501,1780609840000,-500.0,0.00015066,2]
[424142510,1780609840000,-500.0,0.00015066,2]
[424142619,1780609840000,-158.36029375,0.00015393,2]
[424142514,1780609840000,-500.0,0.00015066,2]
[424142500,1780609840000,-500.0,0.00015066,2]
[424142504,1780609840000,-500.0,0.00015066,2]
[424142515,1780609840000,-500.0,0.00015066,2]
[424142519,1780609840000,-1537.48,0.00015067,2]
[424142518,1780609840000,-500.0,0.00015067,2]
[424142521,1780609840000,-500.0,0.00015067,2]
[424142523,1780609840000,-500.0,0.00015067,2]
[424142512,1780609840000,-500.0,0.00015066,2]
[424142552,1780609840000,-500.0,0.00015067,2]
[424142525,1780609840000,-500.0,0.00015067,2]
[424142539,1780609840000,-500.0,0.00015067,2]
[424142537,1780609840000,-500.0,0.00015067,2]
[424142533,1780609840000,-500.0,0.00015067,2]
[424142531,1780609840000,-500.0,0.00015067,2]
[424142535,1780609840000,-500.0,0.00015067,2]
[424142530,1780609840000,-500.0,0.00015067,2]
[424142548,1780609840000,-500.0,0.00015067,2]
[424142541,1780609840000,-500.0,0.00015067,2]
[424142558,1780609840000,-500.0,0.00015132,2]
[424142550,1780609840000,-500.0,0.00015067,2]
[424142528,1780609840000,-558.53,0.00015067,2]
[424142556,1780609840000,-170.061425,0.00015068,2]
[424142716,1780609841000,-2228.46431487,0.00016431,2]
[424142695,1780609841000,-340.78126303,0.00016162,2]
[424142703,1780609841000,-500.0,0.00016163,2]
[424142712,1780609841000,-500.0,0.00016163,2]
[424142718,1780609841000,-500.0,0.00016437,2]
[424142705,1780609841000,-500.0,0.00016163,2]
[424142706,1780609841000,-500.0,0.00016163,2]
[424142710,1780609841000,-564.08,0.00016163,2]
[424142709,1780609841000,-500.0,0.00016163,2]
[424142699,1780609841000,-500.0,0.00016163,2]
[424142697,1780609841000,-198.86715237,0.00016162,2]
[424142714,1780609841000,-163.39251445,0.0001617,2]
[424142701,1780609841000,-1537.48,0.00016163,2]
[424142720,1780609841000,-1537.48,0.00016437,2]
[424142745,1780609841000,-500.0,0.00016711,2]
[424142726,1780609841000,-500.0,0.00016437,2]
[424142724,1780609841000,-500.0,0.00016437,2]
[424142728,1780609841000,-500.0,0.00016437,2]
[424142729,1780609841000,-564.08,0.00016437,2]
[424142739,1780609841000,-500.0,0.00016711,2]
[424142732,1780609841000,-500.0,0.00016437,2]
[424142733,1780609841000,-512.31055633,0.00016648,2]
[424142737,1780609841000,-1537.48,0.00016711,2]
[424142735,1780609841000,-500.0,0.00016711,2]
[424142743,1780609841000,-500.0,0.00016711,2]
[424142741,1780609841000,-500.0,0.00016711,2]
[424142749,1780609841000,-500.0,0.00016711,2]
[424142747,1780609841000,-564.08,0.00016711,2]
[424142693,1780609841000,-2293.61367446,0.00016161,2]
[424142722,1780609841000,-500.0,0.00016437,2]
[424142689,1780609841000,-161.0,0.0001589,3]
[424142629,1780609841000,-500.0,0.00015614,2]
[424142677,1780609841000,-500.0,0.00015889,2]
[424142627,1780609841000,-500.0,0.00015614,2]
[424142631,1780609841000,-500.0,0.00015614,2]
[424142752,1780609841000,-326.78502891,0.00016957,2]
[424142633,1780609841000,-500.0,0.00015614,2]
[424142635,1780609841000,-500.0,0.00015615,2]
[424142637,1780609841000,-500.0,0.00015615,2]
[424142649,1780609841000,-500.0,0.00015615,2]
[424142651,1780609841000,-564.08,0.00015615,2]
[424142653,1780609841000,-500.0,0.00015615,2]
[424142647,1780609841000,-500.0,0.00015615,2]
[424142643,1780609841000,-500.0,0.00015615,2]
[424142641,1780609841000,-500.0,0.00015615,2]
[424142658,1780609841000,-500.0,0.00015615,2]
[424142639,1780609841000,-1537.48,0.00015615,2]
[424142675,1780609841000,-500.0,0.00015889,2]
[424142655,1780609841000,-500.0,0.00015615,2]
[424142663,1780609841000,-500.0,0.00015888,2]
[424142665,1780609841000,-500.0,0.00015888,2]
[424142667,1780609841000,-500.0,0.00015888,2]
[424142659,1780609841000,-500.0,0.0001568,2]
[424142661,1780609841000,-500.0,0.00015888,2]
[424142681,1780609841000,-500.0,0.00015889,2]
[424142683,1780609841000,-564.08,0.00015889,2]
[424142671,1780609841000,-1537.48,0.00015889,2]
[424142687,1780609841000,-500.0,0.00015889,2]
[424142685,1780609841000,-382.98,0.00015889,2]
[424142673,1780609841000,-500.0,0.00015889,2]
[424142691,1780609841000,-500.0,0.00015954,2]
[424142679,1780609841000,-500.0,0.00015889,2]
[424142669,1780609841000,-500.0,0.00015889,2]
[424142645,1780609841000,-500.0,0.00015615,2]
[424142751,1780609841000,-475.71522514,0.00016892,2]
[424142788,1780609841000,-172.7716943,0.000173,2]
[424142757,1780609841000,-1537.48,0.00016985,2]
[424142837,1780609841000,-608.33333334,0.000179,2]
[424142829,1780609841000,-1537.48,0.00017807,2]
[424142828,1780609841000,-500.0,0.00017807,2]
[424142841,1780609841000,-1537.48,0.00018081,2]
[424142830,1780609841000,-500.0,0.00017807,2]
[424142832,1780609841000,-500.0,0.00017807,2]
[424142827,1780609841000,-334.1630167,0.00017764,2]
[424142831,1780609841000,-564.08,0.00017807,2]
[424142846,1780609841000,-564.08,0.00018081,2]
[424142833,1780609841000,-653.57005781,0.00017831,2]
[424142835,1780609841000,-172.7716943,0.000179,2]
[424142834,1780609841000,-248.85258664,0.00017831,2]
[424142850,1780609841000,-816.96257227,0.0001818,2]
[424142852,1780609841000,-190.13466427,0.00018329,5]
[424142844,1780609841000,-500.0,0.00018081,2]
[424142755,1780609841000,-500.0,0.00016985,2]
[424142854,1780609841000,-500.0,0.00018355,2]
[424142855,1780609841000,-1537.48,0.00018355,2]
[424142863,1780609841000,-1415.0,0.00018399,2]
[424142857,1780609841000,-500.0,0.00018355,2]
[424142859,1780609841000,-564.08,0.00018355,2]
[424142865,1780609841000,-1837.0,0.00018399,2]
[424142867,1780609841000,-3629.0,0.00018399,2]
[424142869,1780609841000,-356.119,0.00018399,2]
[424142871,1780609841000,-202.222,0.00018399,2]
[424142873,1780609841000,-444.0,0.00018399,2]
[424142877,1780609841000,-600.0,0.00018544,2]
[424142875,1780609841000,-2293.61367446,0.00018451,2]
[424142878,1780609841000,-308.976,0.000186,2]
[424142880,1780609841000,-500.0,0.00018629,2]
[424142861,1780609841000,-500.0,0.00018355,2]
[424142839,1780609841000,-500.0,0.00018081,2]
[424142848,1780609841000,-500.0,0.00018081,2]
[424142824,1780609841000,-427.12828713,0.00017764,2]
[424142826,1780609841000,-160.49399893,0.00017764,2]
[424142764,1780609841000,-564.08,0.00016985,2]
[424142766,1780609841000,-500.0,0.00016985,2]
[424142761,1780609841000,-191.85,0.00016985,2]
[424142759,1780609841000,-500.0,0.00016985,2]
[424142774,1780609841000,-172.7716943,0.000172,2]
[424142763,1780609841000,-176.45,0.00016985,2]
[424142768,1780609841000,-767.92208879,0.00017177,2]
[424142772,1780609841000,-1251.37754988,0.00017187,2]
[424142770,1780609841000,-160.0,0.00017177,2]
[424142786,1780609841000,-500.0,0.00017259,2]
[424142791,1780609841000,-1334.40354867,0.00017405,2]
[424142790,1780609841000,-608.33333334,0.000173,2]
[424142794,1780609841000,-213.56414356,0.00017416,2]
[424142796,1780609841000,-167.08150835,0.00017416,2]
[424142776,1780609841000,-608.33333334,0.000172,2]
[424142782,1780609841000,-500.0,0.00017259,2]
[424142822,1780609841000,-211.97622216,0.00017764,2]
[424142784,1780609841000,-564.08,0.00017259,2]
[424142816,1780609841000,-500.0,0.00017533,2]
[424142820,1780609841000,-608.33333334,0.000177,2]
[424142818,1780609841000,-172.7716943,0.000177,2]
[424142814,1780609841000,-564.08,0.00017533,2]
[424142812,1780609841000,-500.0,0.00017533,2]
[424142810,1780609841000,-1537.48,0.00017533,2]
[424142808,1780609841000,-500.0,0.00017533,2]
[424142803,1780609841000,-172.7716943,0.000175,2]
[424142801,1780609841000,-490.17754336,0.00017481,2]
[424142780,1780609841000,-1537.48,0.00017259,2]
[424142778,1780609841000,-500.0,0.00017259,2]
[424142805,1780609841000,-608.33333334,0.000175,2]
[424142899,1780609842000,-564.08,0.00018903,2]
[424142898,1780609842000,-1537.48,0.00018903,2]
[424142896,1780609842000,-500.0,0.00018903,2]
[424142892,1780609842000,-980.35508672,0.00018705,2]
[424142894,1780609842000,-271.85,0.00018775,2]
[424142888,1780609842000,-500.0,0.00018629,2]
[424142890,1780609842000,-2038.88,0.0001863,2]
[424142886,1780609842000,-564.08,0.00018629,2]
[424142884,1780609842000,-609.4658437,0.00018629,2]
[424142901,1780609842000,-402.16066726,0.00018903,2]
[424142882,1780609842000,-1537.48,0.00018629,2]
[424142914,1780609842000,-2038.88,0.00019178,2]
[424142928,1780609842000,-1143.74760118,0.00019492,2]
[424142905,1780609842000,-285.04852876,0.00018938,2]
[424142926,1780609842000,-2038.88,0.00019452,2]
[424142918,1780609842000,-3400.0,0.000193,2]
[424142924,1780609842000,-564.08,0.00019451,2]
[424142922,1780609842000,-1537.48,0.00019451,2]
[424142920,1780609842000,-500.0,0.00019451,2]
[424142930,1780609842000,-274582.92548826,0.00019555,2]
[424142916,1780609842000,-1408.94332637,0.00019232,2]
[424142907,1780609842000,-500.0,0.00019177,2]
[424142909,1780609842000,-1537.48,0.00019177,2]
[424142903,1780609842000,-2038.88,0.00018904,2]
[424142911,1780609842000,-564.08,0.00019177,2]
[424142912,1780609842000,-320.55,0.00019178,2]
[424143112,1780609843000,-500.0,0.00013698,2]
[424143110,1780609843000,-500.0,0.00013698,2]
[424143116,1780609843000,-500.0,0.00014246,2]
[424143114,1780609843000,-500.0,0.00013972,2]
[424143122,1780609843000,-301655.69878581,0.00019555,2]